Cogmind - Beta 14 *** ADVENTURER MODE // 2024.08.17 @ 21:18:11 Player: Bob Result: Destroyed by NV-SRO(R) with Subdweller Machine Gun Performance ------------- Evolutions (0) 0 Regions Visited (2) 400 Robots Destroyed (24) 120 Value Destroyed (565) 565 Prototype IDs (11) 220 Alien Tech Used (0) 0 Bonus (0) 0 TOTAL SCORE: 1305 Bonus ------- None Cogmind --------- Core Integrity 0/250 Matter 190/300 Energy 253/265 System Corruption 0% Temperature Cool (0) Movement Core (400) Ox7 Location -10/Subcaves Parts ------- > --- POWER (1) -------- Improved Ion Engine > --- PROPULSION (2) --- (None) > --- UTILITY (2) ------ Medium Storage Unit Signal Interpreter > --- WEAPON (2) ------- Beam Cannon Grenade Launcher > --- INVENTORY (10) --- Heat Sink Sensor Array Terrain Scanner Medium Armor Plating Medium Armor Plating Heavy Riot Gun Beam Cannon Beam Cannon Peak State ------------ > --- POWER ------------ Improved Ion Engine > --- PROPULSION ------- (None) > --- UTILITY ---------- Medium Storage Unit Signal Interpreter > --- WEAPON ----------- Heavy Riot Gun Beam Cannon > --- INVENTORY -------- Heat Sink Sensor Array Terrain Scanner Medium Armor Plating Medium Armor Plating Beam Cannon Beam Cannon Beam Cannon Grenade Launcher [Rating: 10] Favorites ----------- Power Improved Ion Engine Engine Improved Ion Engine Propulsion Aluminum Leg Leg Aluminum Leg Utility Signal Interpreter Device Heat Sink Storage Medium Storage Unit Processor Signal Interpreter Weapon Beam Cannon Energy Gun Heavy Riot Gun Energy Cannon Beam Cannon Ballistic Cannon Battle Cannon Launcher Grenade Launcher Build | -11 -10 -10 ------- Run | Yrd Mat Sub Slots Evolved . | . . . Power . | . . . Propulsion . | . . . Utility . | . . . Weapon . | . . . Parts Attached 28 | 5 11 12 Power 3 | 1 1 1 Engine 3 | 1 1 1 Core . | . . . Reactor . | . . . Propulsion 4 | 2 1 1 Treads . | . . . Leg 4 | 2 1 1 Wheel . | . . . Hover . | . . . Flight . | . . . Utility 5 | 1 4 . Device 2 | . 2 . Storage 2 | 1 1 . Processor 1 | . 1 . Hackware . | . . . Protection . | . . . Artifact . | . . . Weapon 16 | 1 5 10 Energy Gun 2 | 1 . 1 Energy Cannon 7 | . 5 2 Ballistic Gun . | . . . Ballistic Cannon 3 | . . 3 Launcher 4 | . . 4 Special Weapon . | . . . Impact Weapon . | . . . Slashing Weapon . | . . . Piercing Weapon . | . . . Special Melee Weapon . | . . . Unidentified Prototypes . | . . . Parts Lost 6 | . . 6 Power 1 | . . 1 Propulsion 3 | . . 3 Utility . | . . . Weapon 2 | . . 2 Highest Loss Streak 3 | . . 3 To Critical Strikes . | . . . Average Slot Usage (%) 87 | . 98 84 Engine 13 | . 14 13 Leg 16 | . 28 13 Storage 13 | . 13 14 Processor 13 | . 11 14 Energy Gun 1 | . . 1 Energy Cannon 17 | . 27 14 Ballistic Cannon 6 | . . 8 Launcher 2 | . . 3 Peak Build Rating 10 | 5 9 10 Average Rating 8 | 2 8 8 On Entrance 4 | . 5 9 Naked Turns . | . . . Heaviest Build 24 | 12 23 24 Greatest Support 20 | 20 20 20 Greatest Overweight (x) 7 | . 1 7 Average Overweight (x) 2 | . . 2 Largest Inventory Capacity 10 | 8 10 10 Average Capacity 9 | 6 9 10 Most Carried 10 | 5 10 10 Average Carried 8 | . 7 9 Final Capacity 10 | 8 10 10 Final Carried 10 | . 10 8 Class Distribution -------------------- 100% | Mutant Dominant Class ---------------- Mutant | -10/Materials Mutant | -10/Subcaves Resources | -11 -10 -10 ----------- Run | Yrd Mat Sub Matter Collected 697 | 239 121 337 Remotely . | . . . Salvage Created 760 | . 391 369 Parts 56 | . 32 24 Haulers Intercepted 1 | . 1 . Recyclers Shooed . | . . . Parts Field Recycled . | . . . Retrieved Matter . | . . . Parts Self-Destructed 2 | . . 2 Prevented . | . . . Kills | -11 -10 -10 ------- Run | Yrd Mat Sub Combat Hostiles Destroyed 19 | . 10 9 Guns 1 | . . 1 Cannons 16 | . 9 7 Classes Destroyed 7 | . 5 2 Hauler 1 | . 1 . Recycler 1 | . 1 . Watcher 3 | . 3 . Swarmer 8 | . 6 2 Grunt 4 | . 4 . Artisan 1 | . . 1 Subdweller 7 | . . 7 Best Kill Streak 3 | . 3 2 Combat Bots Only 3 | . 3 2 Max Kills in Single Turn 1 | . 1 1 Gunslinging . | . . . Exploded . | . . . Melee . | . . . Uniques/NPCs Destroyed . | . . . Combat | -11 -10 -10 -------- Run | Yrd Mat Sub Hostile Shots Fired 110 | . 35 75 Missed 30 | . 6 24 Damage Taken 1230 | . 174 1056 Core 250 | . 16 234 Absorbed by Shields . | . . . Ignored by Resistances 339 | . 58 281 Core Remaining (%) 100 | 100 . . Volleys Fired 100 | . 27 73 Largest 2 | . 2 2 Hottest 120 | . 120 120 Shots Fired 180 | . 54 126 Gun 7 | . . 7 Cannon 157 | . 54 103 Launcher 16 | . . 16 Special . | . . . Kinetic 45 | . . 45 Thermal 112 | . 54 58 Explosive 16 | . . 16 Electromagnetic 7 | . . 7 Robot Hit Streak 24 | . 8 24 Robot Miss Streak 2 | . 2 1 Penetration Max . | . . . Secondary Targets . | . . . Shots Hit Robots 126 | . 37 89 Core Hits 38 | . 15 23 Critical Kills . | . . . Critical Parts Destroyed . | . . . Critical Strikes 1 | . . 1 Blast 1 | . . 1 Melee Attacks . | . . . Impact . | . . . Slashing . | . . . Piercing . | . . . Sneak Attacks . | . . . Combat Hostiles . | . . . Follow-up Attacks . | . . . Damage Inflicted 2258 | . 699 1559 Guns 155 | . . 155 Cannons 2075 | . 699 1376 Explosions 28 | . . 28 Melee . | . . . Ramming . | . . . Kinetic 692 | . . 692 Thermal 1383 | . 699 684 Explosive 28 | . . 28 Electromagnetic 155 | . . 155 Impact . | . . . Slashing . | . . . Piercing . | . . . Highest Corruption . | . . . Average Corruption . | . . . Corruption Purged . | . . . Corruption Blocked . | . . . Overload Shots . | . . . Overflow Damage 16 | . 16 . Projectiles 16 | . 16 . Explosions . | . . . Melee . | . . . Knockbacks 8 | . . 8 Impact . | . . . Kinetic 7 | . . 7 Secondary 1 | . . 1 Self-Inflicted Damage . | . . . Shots . | . . . Rammed . | . . . Targets Rammed . | . . . Kicked . | . . . Crushed . | . . . Highest Temperature 361 | . 361 78 Average Temperature 84 | . 96 28 Received Heat Transfer 225 | . 18 207 Effects 1 | . 1 . Short Circuit 1 | . 1 . Siege Activations . | . . . Robots Corrupted 1 | . . 1 Combat Hostiles 1 | . . 1 Parts Fried 1 | . . 1 Impact Corruptions . | . . . Robots Melted 1 | . 1 . Combat Hostiles 1 | . 1 . Parts Melted 2 | . 2 . Heat Transferred 2923 | . 1480 1443 Parts Sabotaged . | . . . Parts Stolen . | . . . Parts Stripped . | . . . Power Chain Reactions . | . . . Alert | -11 -10 -10 ------- Run | Yrd Mat Sub Peak Influence 183 | . 183 . Initial . | . . . Average 53 | . 54 . Maximum Alert Level . | . . . Low Security (%) 100 | 100 100 . Level 1 . | . . . Level 2 . | . . . Level 3 . | . . . Level 4 . | . . . Level 5 . | . . . High Security . | . . . Max Security . | . . . Squads Dispatched . | . . . Investigation . | . . . Extermination . | . . . Reinforcement . | . . . Assault . | . . . Garrison . | . . . Intercept . | . . . Searches Triggered . | . . . Construction Impeded . | . . . Haulers Reinforced . | . . . Active Scanning Responses . | . . . Cargo Convoy Interrupts . | . . . Stealth | -11 -10 -10 --------- Run | Yrd Mat Sub Distress Signals . | . . . Communications Jammed . | . . . Distress Signals . | . . . Times Spotted 29 | . 17 12 Peak Tracking Total 4 | . 4 3 Tactical Retreats 2 | . 1 1 Traps | -11 -10 -10 ------- Run | Yrd Mat Sub Traps Triggered 4 | . . 4 Indirectly . | . . . Trap Hack Attempts . | . . . Triggered . | . . . Disarmed . | . . . Reprogrammed . | . . . Reused . | . . . Traps Extracted . | . . . Installed . | . . . Triggered . | . . . Machines | -11 -10 -10 ---------- Run | Yrd Mat Sub Machines Disabled . | . . . Max in Single Turn . | . . . Machines Repaired . | . . . Machines Dismantled . | . . . Machines Sabotaged . | . . . Overloaded Fab Kills . | . . . Hacking | -11 -10 -10 --------- Run | Yrd Mat Sub Machines Accessed 5 | . 2 3 Terminals 2 | . 2 . Fabricators . | . . . Repair Stations . | . . . Recycling Units . | . . . Scanalyzers . | . . . Garrison Access . | . . . Total Hacks 15 | . 3 12 Successful 15 | . 3 12 Failed . | . . . Catastrophic . | . . . Database Lockouts . | . . . Manual . | . . . Terminals 3 | . 3 . Fabricators . | . . . Repair Stations . | . . . Recycling Units . | . . . Scanalyzers . | . . . Garrison Access . | . . . Terminal Hacks 15 | . 3 12 Record 9 | . . 9 Open Door 1 | . . 1 Hauler Manifests 1 | . 1 . Registered Components 1 | . 1 . Zone Layout 1 | . 1 . Derelict Proto ID Bank 1 | . . 1 Release Object 1 | . . 1 Fabricator Hacks . | . . . Repair Station Hacks . | . . . Recycling Unit Hacks . | . . . Scanalyzer . | . . . Garrison Access Hacks . | . . . Unauthorized Hacks . | . . . Terminals . | . . . Fabricators . | . . . Repair Stations . | . . . Recycling Units . | . . . Scanalyzers . | . . . Garrison Access . | . . . Data Cores Recovered . | . . . Used . | . . . Hacking Detections 2 | . 2 . Full Trace Events . | . . . Feedback Events . | . . . Feedback Blocked . | . . . Robot Schematics Acquired . | . . . Robots Built . | . . . Authchips . | . . . Time . | . . . Total Robot Build Rating . | . . . Part Schematics Acquired . | . . . Parts Built . | . . . Authchips . | . . . Time . | . . . Total Part Build Rating . | . . . Parts Repaired . | . . . Time . | . . . Parts Recycled . | . . . Recycled Matter . | . . . Retrieved Matter . | . . . Retrieved Components . | . . . Parts Scanalyzed . | . . . Part Schematics Acquired . | . . . Parts Damaged . | . . . Bothacking | -11 -10 -10 ------------ Run | Yrd Mat Sub Used RIF Installer . | . . . Robots Hacked . | . . . Non-combat . | . . . Combat . | . . . Robot Hacks Applied . | . . . Relay Couplers Released . | . . . Fabnet Peak Effective % . | . . . Robots Rewired . | . . . Allies Hacked . | . . . Hacks Repelled . | . . . Allies | -11 -10 -10 -------- Run | Yrd Mat Sub Total Allies . | . . . Largest Group . | . . . Highest-Rated Group . | . . . Highest-Rated Ally . | . . . Total Orders . | . . . Ally Attacks . | . . . Total Damage . | . . . Kills . | . . . Allies Corrupted . | . . . Allies Melted . | . . . Intel | -11 -10 -10 ------- Run | Yrd Mat Sub Robot Analysis Total . | . . . Derelict Logs Recovered 2 | . . 2 Drone Launches . | . . . Drone Recoveries . | . . . Exploration | -11 -10 -10 ------------- Run | Yrd Mat Sub Turns Passed 6674 | 44 1446 5184 Spaces Moved 2675 | 41 771 1863 Core 420 | 21 . 399 Treads . | . . . Legs 2255 | 20 771 1464 Wheels . | . . . Hover . | . . . Flight . | . . . Fastest Speed 50 | 50 120 190 Average Speed 235 | 84 169 266 Slowest Speed 400 | 120 190 400 Overloaded Moves . | . . . Propulsion Burnouts . | . . . Robots Hopped . | . . . Cave-ins Triggered . | . . . Exploration Rate (%) 59 | 3 92 82 Regions Visited 2 Branch Regions 1 Pre-discovered Areas 2 | . . 2 Known Exits Taken 1 | . 1 . Unknown Exits Taken 1 | 1 . . Scrap Searched 2 | . . 2 Spaces Dug 12 | . . 12 Terrain Destroyed 87 | . . 87 Melee . | . . . Projectile . | . . . AOE 87 | . . 87 Terrain Rammed . | . . . Walls Destroyed . | . . . Machines Disabled . | . . . Actions | -11 -10 -10 --------- Run | Yrd Mat Sub Total 2861 | 50 855 1956 Wait 18 | . 18 . Move 2673 | 40 770 1863 Hop . | . . . Pick Up 30 | 5 20 5 Fast Attach . | . . . Attach 15 | 5 5 5 Detach . | . . . Swap 13 | . 6 7 Drop 12 | . 9 3 Fire 100 | . 27 73 Melee . | . . . Ram . | . . . Kick . | . . . Crush . | . . . Escape Stasis . | . . . Rewire . | . . . Trap . | . . . Miscellaneous . | . . . Route ------- -11/Scrapyard -10/Materials (discovered 5 exits: *Mat x3 / *Min / *Sub) -10/Subcaves (discovered 1 exit: *Mat) History --------- Turn | Location | Event 13 | -11/Scrapyard | Discovered new exit (range 15) 45 | -11/Scrapyard | Entered Materials 247 | -10/Materials | Discovered new exit (range 10) 260 | -10/Materials | Identified exit to Materials 318 | -10/Materials | Build established: Mutant 464 | -10/Materials | Discovered exit to Materials (range 13) 812 | -10/Materials | Discovered new exit (range 7) 927 | -10/Materials | Discovered exit to Materials (range 13) 1298 | -10/Materials | Identified exit to Mines 1481 | -10/Materials | Discovered new exit (range 5) 1489 | -10/Materials | Identified exit to Subcaves 1491 | -10/Materials | Entered Subcaves 1561 | -10/Subcaves | Shifting Twisted Machinery released Piercing Trap 1738 | -10/Subcaves | Shifting Twisted Machinery released Sub. Power Source 2423 | -10/Subcaves | A swath of the cavern ceiling suddenly collapsed 2511 | -10/Subcaves | Shifting Twisted Machinery released Battle Rifle 2723 | -10/Subcaves | Shifting Twisted Machinery released Battle Cannon 4185 | -10/Subcaves | Discovered new exit (range 8) 4216 | -10/Subcaves | Identified exit to Materials 4802 | -10/Subcaves | Shifting Twisted Machinery released Mak. Kinetic Plating 5033 | -10/Subcaves | Core integrity fell below 50% 5048 | -10/Subcaves | Core integrity fell below 20% 5064 | -10/Subcaves | Lost 3 parts (1n2w) 5149 | -10/Subcaves | Learned location of Zion (-6) 6016 | -10/Subcaves | Visited 4L-MR0's lab 6675 | -10/Subcaves | Destroyed by NV-SRO(R) with Subdweller Machine Gun Last Messages --------------- I haven't gotten around to building the cannon yet, but they said the idea is to have a cannon with 'ridiculously high matter cost' but a corresondingly ridiculous high damage, and the ability to slot in the best high-capacity matter pods they can find for more efficient transfer while firing. >>Record! "Infernogeddon Engine" There was a rumor. A rumor but no details. I can't build something based on a vague rumor about ending the world in a hellish blaze at the flip of a switch. Also why would anyone want that. >>Record! "Uberlauncher" I hear [REDACTED] exploded during the installation process. I did warn them to fully install it before trying to fire, and something tells me that's where things went wrong. Still I'm glad they didn't listen, that way I'm not culpable for whatever they would've done with it. If we're lucky even some of the others got blasted, too. Map ----- +----------------------------------------------------+ | ??????????????## ######???### ## | | ???????????????# ###?# | | ???????????????# #### # # | | ???????????????# ### ### # | | ???????????????# #?# ## ## | | ???????????????# ##?# # """ #### | | ???????????????## ???# " ###??? | | ????????????????##???## ## "##????? | | ??????????????????????# ## #### ####?????? | | ?????????????????????## ##??###????????? | | ?????????????????????# ##??????????????? | | ????????????????????### ###???????????????? | | ???????????????????## #????????????????? | | ???????????????????# ##????????????????? | | ?????????????????### #?????????????????? | | ?????????????????# #" #?????????????????? | | ?????????????????# #?????????????????? | | ?????????????????# #" ##?????????????????? | | ???????????????? "## ##?????????????????? | | ???????????????###??# R ####??????????????? | | ???????????????????## #??????????????? | | ??????????????????## ##??????????????? | | ??????????????##### ##??????????????? | | ??????????????# #??????????????? | | ??????????????# #??????????????? | | ??????????????## @ "#??????????????? | | ???????????????#### ##""##??????????????? | | ??????????????????## "#?###???????????????? | | ???????????????????# #???????????????????? | | ??????????????????? ??????????????????? | | ??????????????????? ""?????????????????? | | ???????????????????#"""""""????????????????? | | ???????????????????###"### ???????????????? | | ??????????????????????##???????????????????? | | ???????????????????????????????????????????? | | ???????????????????????????????????????????? | | ???????????????????????????????????????????? | | ???????????????????????????????????????????? | | ???????????????????????????????????????????? | | ???????????????????????????????????????????? | | ???????????????????????????????????????????? | | ???????????????????????????????????????????? | | ???????????????????????????????????????????? | | ???????????????????????????????????????????? | | ???????????????????????????????????????????? | | ???????????????????????????????????????????? | | ???????????????????????????????????????????? | | ???????????????????????????????????????????? | | ???????????????????????????????????????????? | | ???????????????????????????????????????????? | +----------------------------------------------------+ Best States ------------- Heat Dissipation 35 Energy Generation 12 Energy Capacity 265 Matter Stores 300 Matter Capacity 300 Sight Range 16 Terrain Scan Density 10 Resistance: KI 20 Resistance: TH 20 Resistance: EX 20 Resistance: EM 20 Resistance: I 20 Resistance: S 20 Resistance: P 20 Evasion (%) 55 Offensive Hacking 10 Item Schematics ----------------- None Robot Schematics ------------------ None Fabricated ------------ Nothing Alien Tech Used ----------------- None Achievements -------------- None Challenges ------------ None Game ------ Seed ThrowingImpulseShockpuncher Manual? 0 Play Time 00:24:24 Cumulative 203.3 hours Start 2024.08.17 @ 20:57:19 End 2024.08.17 @ 21:18:11 Sessions 1 Manual Loads 0 Difficulty Adventurer Special Mode None Game No. 305 Rogue 241 Adventurer 64 Explorer 0 Win Type - Total 5 Types 2/1/0/2/0/0/0/0/0 Lore% 32 Gallery% 58 Achievement% 55 Wizard Run 0 Options --------- Layout 1 ASCII 0 Keyboard 0 Movement Arrows Keybinds 0 Fullscreen 1 Font 16/SmallcapsGlow Map View 55x38 Zoom Use 0% Tactical HUD 1 Map Filters NONE Filters NONE Steam 1 RUN: 247c0068-f894-4dff-89f6-b20200433ca3